fUST/lending_fUST_20250926
["ID","MTS","AMOUNT","RATE_DAILY","PERIOD"]
[387778834,1758846635470,-480.0,0.00020154,2]
[387778835,1758846635479,-378.14170601,0.00020154,2]
[387778836,1758846635489,-480.0,0.00020154,2]
[387778837,1758846635499,-618.22,0.00020154,2]
[387778838,1758846635508,-163.83491335,0.00020155,2]
[387778839,1758846635518,-500.0,0.00020155,2]
[387778840,1758846635527,-151.0,0.00020157,2]
[387778841,1758846635537,-151.0,0.00020157,2]
[387778842,1758846635546,-245.36426507,0.00020157,2]
[387778843,1758846635555,-614.99130717,0.00020221,2]
[387778844,1758846635564,-500.0,0.00020221,2]
[387778845,1758846635574,-500.0,0.00020426,2]
[387778846,1758846635583,-311.83468343,0.00020426,2]
[387778847,1758846635593,-399.94794997,0.00020426,2]
[387778848,1758846635603,-300.0,0.00020426,2]
[387778849,1758846635613,-278.93429614,0.00020426,2]
[387778850,1758846635622,-472.83216801,0.00020426,2]
[387778851,1758846635632,-500.0,0.00020426,2]
[387778852,1758846635641,-500.0,0.00020426,2]
[387778853,1758846635651,-500.0,0.00020426,2]
[387778854,1758846635662,-500.0,0.00020426,2]
[387778855,1758846635671,-500.11831302,0.00020426,2]
[387778856,1758846635680,-480.0,0.00020428,2]
[387778857,1758846635690,-480.0,0.00020428,2]
[387778858,1758846635699,-480.0,0.00020428,2]
[387778859,1758846635709,-480.0,0.00020428,2]
[387778860,1758846635719,-500.0,0.00020429,2]
[387778861,1758846635803,-151.0,0.00020429,2]
[387778862,1758846635813,-151.0,0.00020429,2]
[387778863,1758846635823,-151.0,0.00020429,2]
[387778864,1758846635832,-151.0,0.00020429,2]
[387778865,1758846635842,-151.0,0.00020429,2]
[387778866,1758846635851,-151.0,0.00020429,2]
[387778867,1758846635860,-151.0,0.00020431,2]
[387778868,1758846635870,-151.0,0.00020431,2]
[387778869,1758846635880,-151.0,0.00020431,2]
[387778870,1758846635889,-1000.0,0.000205,2]
[387778871,1758846635899,-500.0,0.000207,2]
[387778872,1758846635908,-500.0,0.000207,2]
[387778873,1758846635917,-480.0,0.00020702,2]
[387778874,1758846635927,-480.0,0.00020702,2]
[387778875,1758846635936,-480.0,0.00020702,2]
[387778876,1758846635946,-480.0,0.00020702,2]
[387778877,1758846635955,-245.0,0.00020705,2]
[387778878,1758846635964,-245.0,0.00020705,2]
[387778879,1758846635975,-320.541694,0.00020806,2]
[387778880,1758846635984,-320.541694,0.00020806,2]
[387778881,1758846635994,-320.541694,0.00020806,2]
[387778882,1758846636003,-320.541694,0.00020806,2]
[387778883,1758846636012,-480.0,0.00020976,2]
[387778884,1758846636021,-480.0,0.00020976,2]
[387778885,1758846636032,-480.0,0.00020976,2]
[387778886,1758846636043,-152.832049,0.00020979,2]
[387778887,1758846636056,-398.42099812,0.00021,2]
[387778888,1758846636066,-1500.0,0.00021048,2]
[387778889,1758846636075,-345.41891863,0.00021153,2]
[387778890,1758846636085,-480.0,0.0002125,2]
[387778891,1758846636095,-480.0,0.0002125,2]
[387778892,1758846636104,-480.0,0.0002125,2]
[387778893,1758846636113,-151.0,0.0002125,2]
[387778894,1758846636123,-151.0,0.0002125,2]
[387778895,1758846636134,-246.232971,0.0002125,2]
[387778896,1758846636144,-151.0,0.0002125,2]
[387778897,1758846636153,-191.361849,0.0002125,2]
[387778898,1758846636162,-151.0,0.00021253,2]
[387778899,1758846636171,-480.0,0.00021524,2]
[387778900,1758846636181,-480.0,0.00021524,2]
[387778901,1758846636190,-480.0,0.00021524,2]
[387778902,1758846636207,-2000.0,0.00021596,2]
[387778903,1758846636217,-480.0,0.00021798,2]
[387778904,1758846636227,-480.0,0.00021798,2]
[387778905,1758846636236,-556.6,0.00021798,2]
[387778906,1758846636247,-251.0,0.00021799,2]
[387778907,1758846636257,-160.0,0.00022026,2]
[387778908,1758846636268,-160.0,0.00022026,2]
[387778909,1758846636277,-160.0,0.00022026,2]
[387778910,1758846636287,-233.66602051,0.00022026,2]
[387778911,1758846636297,-160.0,0.00022026,2]
[387778912,1758846636306,-417.15472785,0.00022026,2]
[387778913,1758846636315,-160.0,0.00022026,2]
[387778914,1758846636325,-160.0,0.00022026,2]
[387778915,1758846636334,-259.97,0.00022072,2]
[387778916,1758846636344,-480.0,0.00022072,2]
[387778917,1758846636354,-1500.0,0.00022144,2]
[387778918,1758846636363,-2160.0,0.00022163,2]
[387778919,1758846636372,-635.0,0.00022163,2]
[387778920,1758846636381,-410.0,0.00022163,2]
[387778921,1758846636390,-420.128,0.00022163,2]
[387778922,1758846636400,-198.65195009,0.00022346,2]
[387778923,1758846636409,-151.0,0.00022346,7]
[387778924,1758846636418,-1017.19222998,0.000225,2]
[387778925,1758846636428,-160.0,0.00023,2]
[387778926,1758846636437,-345.41891861,0.000232,2]
[387778927,1758846636446,-150.0,0.000239,2]
[387778928,1758846636455,-1700.68674923,0.0002399,2]
[387778929,1758846636466,-63.51817801,0.00024,3]
[387778930,1758846636488,-353.63654984,0.00024,3]
[387778931,1758846636498,-9.47462639,0.00024195,2]
[387778932,1758846636552,-490.52537361,0.00024195,2]
[387778933,1758846636562,-342.1667127,0.00024346,2]
[387778934,1758846636572,-151.0,0.00024384,7]
[387778935,1758846636583,-151.0,0.00024384,7]
[387778936,1758846636601,-151.0,0.00024384,7]
[387778937,1758846636613,-536.1473043,0.00024384,2]
[387778938,1758846636623,-317.3474117,0.00024384,2]
[387778939,1758846636633,-296.7745048,0.00024384,2]
[387778940,1758846636643,-189.0537352,0.00024384,2]
[387778941,1758846636655,-162.2602779,0.00024384,2]
[387778942,1758846636666,-586.2552204,0.00024384,2]
[387778943,1758846636676,-586.2552204,0.00024384,2]
[387778944,1758846636686,-162.2602779,0.00024384,2]
[387778945,1758846636696,-189.0537352,0.00024384,2]
[387778946,1758846636706,-296.7745048,0.00024384,2]
[387778947,1758846636716,-586.2552204,0.00024384,2]
[387778948,1758846636726,-296.7745048,0.00024384,2]
[387778949,1758846636736,-189.0537352,0.00024384,2]
[387778950,1758846636746,-162.2602779,0.00024384,2]
[387778951,1758846636757,-586.2552204,0.00024384,2]
[387778952,1758846636767,-162.2602779,0.00024384,2]
[387778953,1758846636777,-296.7745048,0.00024384,2]
[387778954,1758846636787,-586.2552204,0.00024384,2]
[387778955,1758846636797,-296.7745048,0.00024384,2]
[387778956,1758846636807,-162.2602779,0.00024384,2]
[387778957,1758846636818,-586.2552204,0.00024384,2]
[387778958,1758846636828,-339.8036452,0.00024384,2]
[387778959,1758846636838,-586.2552204,0.00024384,2]
[387778960,1758846636848,-586.2552204,0.00024384,2]
[387778961,1758846636857,-586.2552204,0.00024384,2]
[387778962,1758846636867,-586.2552204,0.00024384,2]
[387778963,1758846636877,-162.129792,0.00024402,2]
[387778964,1758846636887,-457.337,0.00024628,7]
[387778965,1758846636897,-200.0,0.00024658,15]
[387778966,1758846636907,-151.0,0.000248,7]
[387778967,1758846636916,-320.541694,0.000248,7]
[387778968,1758846636926,-320.541694,0.000248,7]
[387778969,1758846636935,-320.541694,0.000248,7]
[387778970,1758846636945,-320.541694,0.000248,7]
[387778971,1758846636955,-357.41048676,0.000248,2]
[387778972,1758846636964,-505.85420567,0.00024873,2]
[387778973,1758846636974,-500.0,0.00024873,2]
[387778974,1758846636984,-500.0,0.00024873,2]
[387778975,1758846636994,-500.0,0.00024873,2]
[387778976,1758846637004,-524.28,0.000249,2]
[387778977,1758846637014,-151.0,0.000249,7]
[387778978,1758846637023,-13568.09396926,0.000249,2]
[387778979,1758846637128,-125079.34181371,0.000249,2]
[387778996,1758846638358,-500.0,0.00019318,2]
[387778998,1758846638368,-500.0,0.00019318,2]
[387779000,1758846638378,-500.0,0.00019318,2]
[387779002,1758846638387,-385.07062232,0.00019318,2]
[387779004,1758846638396,-500.0,0.00019318,2]
[387779006,1758846638406,-500.0,0.00019318,2]
[387779008,1758846638415,-114.93355382,0.00019318,2]
[387779010,1758846638430,-66.1276756,0.00019318,2]
[387779012,1758846638440,-500.0,0.00019318,2]
[387779014,1758846638449,-500.0,0.00019318,2]
[387779016,1758846638458,-500.0,0.00019318,2]
[387779026,1758846638558,-500.0,0.00019318,2]
[387779028,1758846638570,-500.0,0.00019318,2]
[387779029,1758846638579,-500.0,0.00019318,2]
[387779030,1758846638589,-500.0,0.00019318,2]
[387779031,1758846638598,-500.0,0.00019318,2]
[387779032,1758846638607,-500.0,0.00019318,2]
[387779033,1758846638616,-500.0,0.00019318,2]
[387779034,1758846638626,-500.0,0.00019318,2]
[387779035,1758846638636,-500.0,0.00019318,2]
[387779036,1758846638647,-505.55391864,0.00019318,2]
[387779037,1758846638656,-232.22586169,0.00019318,2]
[387779038,1758846638665,-500.0,0.00019318,2]
[387779039,1758846638675,-500.0,0.00019318,2]
[387779040,1758846638684,-500.0,0.00019318,2]
[387779041,1758846638694,-9216.70621515,0.00019606,2]
[387779042,1758846638703,-1993.88807934,0.000199,2]
[387779043,1758846638713,-1993.88807913,0.00020972,2]
[387779044,1758846638722,-1993.88807913,0.00022044,2]
[387779045,1758846638731,-151.0,0.00022346,7]
[387779046,1758846638740,-1993.88807913,0.00023116,2]
[387779047,1758846638749,-1993.88807913,0.00024187,2]
[387779048,1758846638758,-235828.32882603,0.000249,2]
[387779049,1758846638767,-320.541694,0.000249,7]
[387779050,1758846638776,-320.541694,0.000249,7]
[387779051,1758846638785,-320.541694,0.000249,7]
[387779052,1758846638794,-320.541694,0.000249,7]
[387779053,1758846638803,-151.0,0.000249,7]
[387779054,1758846638814,-151.0,0.000249,7]
[387779055,1758846638825,-252.217018,0.000249,7]
[387779056,1758846638835,-246.353431,0.000249,7]
[387779057,1758846638845,-407.22053807,0.00025,10]
[387779058,1758846638855,-121.36455673,0.00025163,2]
[387779059,1758846638867,-2038.63544327,0.00025163,2]
[387779060,1758846638878,-635.0,0.00025163,2]
[387779061,1758846638887,-410.0,0.00025163,2]
[387779062,1758846638896,-410.0,0.00025163,2]
[387779063,1758846638905,-586.2552204,0.00025206,2]
[387779064,1758846638915,-586.2552204,0.00025206,2]
[387779065,1758846638925,-586.2552204,0.00025206,2]
[387779066,1758846638935,-586.2552204,0.00025206,2]
[387779067,1758846638944,-345.41891861,0.00025247,2]
[387779068,1758846638954,-1993.88807913,0.00025259,3]
[387779069,1758846638963,-1000.0,0.00025421,2]
[387779070,1758846638973,-500.0,0.00025713,7]
[387779071,1758846638982,-1670.0489678,0.00026,30]
[387779072,1758846638991,-500.0,0.0002622,2]
[387779073,1758846639000,-500.0,0.0002622,2]
[387779074,1758846639009,-500.0,0.0002622,2]
[387779075,1758846639019,-1993.88807913,0.00026331,5]
[387779076,1758846639028,-1000.0,0.00026768,2]
[387779077,1758846639038,-168.0,0.00027218,2]
[387779078,1758846639051,-155.18,0.00027289,7]
[387779079,1758846639065,-345.41891861,0.00027293,2]
[387779080,1758846639074,-357.41048674,0.00027375,2]
[387779081,1758846639083,-155.18,0.00027389,7]
[387779082,1758846639095,-1000.0,0.00027397,2]
[387779083,1758846639104,-151.5,0.000274,2]
[387779084,1758846639114,-151.5,0.000274,2]
[387779085,1758846639124,-1993.88807913,0.00027403,7]
[387779086,1758846639135,-155.18,0.00027489,15]
[387779087,1758846639145,-440.0,0.00027534,2]
[387779088,1758846639154,-162.129792,0.0002754,2]
[387779089,1758846639163,-155.18,0.00027589,15]
[387779090,1758846639172,-168.0,0.00027643,2]
[387779091,1758846639182,-155.18,0.00027689,15]
[387779092,1758846639191,-155.18,0.00027789,15]
[387779093,1758846639200,-155.18,0.00027889,15]
[387779094,1758846639209,-168.0,0.00027907,2]
[387779095,1758846639219,-155.18,0.00027989,15]
[387779096,1758846639231,-481.34639875,0.00028046,3]
[387779097,1758846639240,-155.18,0.00028089,15]
[387779098,1758846639249,-168.0,0.00028154,2]
[387779099,1758846639259,-583.214,0.00028163,2]
[387779100,1758846639268,-177.759,0.00028163,2]
[387779101,1758846639277,-410.0,0.00028163,2]
[387779102,1758846639287,-410.0,0.00028163,2]
[387779103,1758846639296,-160.0,0.00028177,3]
[387779104,1758846639306,-155.18,0.00028189,15]
[387779105,1758846639315,-300.81,0.00028219,14]
[387779106,1758846639329,-500.0,0.00028252,7]
[387779107,1758846639338,-601.69786637,0.00028262,2]
[387779108,1758846639347,-155.18,0.00028289,15]
[387779109,1758846639357,-155.18,0.00028389,15]
[387779110,1758846639367,-1993.88807913,0.00028475,9]
[387779111,1758846639376,-155.18,0.00028489,15]
[387779112,1758846639385,-524.28,0.000285,2]
[387779113,1758846639397,-155.18,0.00028589,15]
[387779114,1758846639407,-155.32253722,0.00028689,15]
[387779115,1758846639417,-300.81,0.00028904,15]
[387779116,1758846639426,-1000.0,0.0002902,5]
[387779117,1758846639435,-961.4947618,0.0002902,20]
[387779118,1758846639446,-1000.0,0.0002904,5]
[387779119,1758846639454,-232.8,0.00029044,30]
[387779120,1758846639464,-160.0,0.00029051,4]
[387779121,1758846639473,-500.0,0.00029167,7]
[387779122,1758846639483,-345.41891861,0.0002934,2]
[387779123,1758846639492,-362.28799,0.000294,5]
[387779124,1758846639503,-4379.2807744,0.0002943,15]
[387779125,1758846639512,-320.541694,0.0002943,7]
[387779126,1758846639521,-320.541694,0.0002943,7]
[387779127,1758846639531,-320.541694,0.0002943,7]
[387779128,1758846639540,-320.541694,0.0002943,7]
[387779129,1758846639550,-29722.69904925,0.0002944,2]
[387779130,1758846639562,-18910.6563185,0.0002944,2]
[387779131,1758846639575,-6481.95093659,0.0002944,2]
[387779132,1758846639586,-20731.91114741,0.0002944,2]
[387779133,1758846639597,-1150.32967432,0.0002944,2]
[387779134,1758846639608,-879.2939947,0.0002944,2]
[387779135,1758846639619,-23891.66709757,0.0002944,2]
[387779136,1758846639630,-749.8638399,0.0002944,2]
[387779137,1758846639641,-446.85727902,0.0002944,2]
[387779143,1758846640547,-34108.94737366,0.0002944,2]
[387779144,1758846640601,-7255.23,0.0002944,2]
[387779156,1758846646697,-3579.72,0.0002489,10]
[387779157,1758846646706,-37847.0418,0.0002944,2]
[387779158,1758846646750,-10222.29324453,0.0002944,2]
[387779159,1758846646763,-6780.92592738,0.0002944,2]
[387779160,1758846646775,-575.2800001,0.0002944,2]
[387779174,1758847388521,400.0,0.00028767,120]
[387779309,1758847832661,-260.59621547,0.0001934,2]
[387779312,1758847832671,-39.40378453,0.0001934,2]
[387779315,1758847832682,-111.59621547,0.0001934,2]
[387779317,1758847832692,-151.0,0.0001934,2]
[387779319,1758847832701,-151.0,0.0001934,2]
[387779320,1758847832711,-151.0,0.0001934,2]
[387779322,1758847832721,-151.0,0.0001934,2]
[387779323,1758847832730,-151.0,0.0001934,2]
[387779326,1758847832740,-151.0,0.0001934,2]
[387779328,1758847832749,-292.95880755,0.0001934,2]
[387779329,1758847832760,-1200.0,0.00019349,2]
[387779331,1758847832770,-1200.0,0.0001935,2]
[387779333,1758847832780,-300.0,0.0001935,2]
[387779336,1758847832790,-300.0,0.0001935,2]
[387779338,1758847832800,-500.0,0.00019351,2]
[387779340,1758847832809,-500.0,0.00019351,2]
[387779342,1758847832818,-500.0,0.00019351,2]
[387779343,1758847832828,-390.19165993,0.00019351,2]
[387779344,1758847832837,-177.92952311,0.00019351,2]
[387779346,1758847832847,-32724.62688978,0.00019352,2]
[387779347,1758847832856,-500.0,0.000194,2]
[387779348,1758847832865,-4861.55411693,0.0002226,2]
[387779349,1758847832875,-233.66602051,0.00023106,2]
[387779350,1758847832884,-160.0,0.00023109,2]
[387779351,1758847832893,-417.15472785,0.00023109,2]
[387779352,1758847832902,-160.0,0.00023109,2]
[387779353,1758847832911,-160.0,0.00023109,2]
[387779354,1758847832921,-500.0,0.00023171,2]
[387779355,1758847832930,-978.0,0.00023172,2]
[387779356,1758847832940,-410.0,0.00023172,2]
[387779357,1758847832950,-420.128,0.00023172,2]
[387779358,1758847832960,-500.0,0.000232,2]
[387779359,1758847832970,-500.0,0.000232,2]
[387779360,1758847832979,-500.0,0.000232,2]
[387779361,1758847832990,-500.0,0.000232,2]
[387779362,1758847832999,-417.15472785,0.00024,3]
[387779363,1758847833009,-365.87,0.00024637,7]
[387779364,1758847833019,-417.15472785,0.00025,10]
[387779365,1758847833028,-500.0,0.00025438,7]
[387779366,1758847833038,-488.02265193,0.00025788,2]
[387779367,1758847833047,-978.0,0.00026172,2]
[387779368,1758847833057,-389.744,0.00026172,2]
[387779369,1758847833067,-410.0,0.00026172,2]
[387779370,1758847833076,-270.71077951,0.00026818,2]
[387779371,1758847833086,-500.0,0.00027397,10]
[387779372,1758847833095,-500.0,0.00027397,10]
[387779373,1758847833105,-500.0,0.00027397,10]
[387779374,1758847833115,-325.64938524,0.00027397,10]
[387779375,1758847833125,-980.6782672,0.00027397,2]
[387779376,1758847833135,-214.93537852,0.00027475,2]
[387779377,1758847833145,-500.0,0.00027627,7]
[387779378,1758847833154,-275.74,0.00028219,14]
[387779379,1758847833164,-151.0,0.00028475,5]
[387779380,1758847833174,-151.0,0.00028475,5]
[387779381,1758847833184,-609.44981074,0.00028508,7]
[387779382,1758847833194,-151.0,0.00028749,5]
[387779383,1758847833204,-151.0,0.00028749,5]
[387779384,1758847833214,-275.74,0.00028904,15]
[387779385,1758847833224,-151.0,0.00029023,5]
[387779386,1758847833233,-208.84949245,0.00029023,5]
[387779387,1758847833243,-1000.0,0.0002905,20]
[387779388,1758847833252,-583.04111119,0.00029059,7]
[387779389,1758847833264,-978.0,0.00029172,2]
[387779390,1758847833273,-410.0,0.00029172,2]
[387779391,1758847833283,-357.41048674,0.0002933,2]
[387779392,1758847833293,-151.84916341,0.0002934,2]
[387779393,1758847833302,-166.0,0.000294,3]
[387779394,1758847833312,-1438.61,0.000294,10]
[387779395,1758847833322,-56171.3646914,0.0002941,2]
[387779396,1758847833332,-825.03,0.00029412,3]
[387779397,1758847833342,-275.0,0.0002942,3]
[387779398,1758847833351,-151.0,0.0002942,7]
[387779399,1758847833361,-151.0,0.0002942,7]
[387779400,1758847833371,-151.0,0.0002942,7]
[387779401,1758847833380,-151.0,0.0002942,7]
[387779402,1758847833390,-112342.729383,0.0002942,2]
[387779403,1758847833399,-69578.48649845,0.0002943,2]
[387779404,1758847833453,-98935.60757555,0.0002943,2]
[387779405,1758847833462,-151.0,0.0002943,7]
[387779406,1758847833472,-151.0,0.0002943,7]
[387779407,1758847833483,-151.0,0.0002943,7]
[387779408,1758847833492,-1483.30834412,0.0002944,2]
[387779409,1758847833502,-9122.69868517,0.0002944,2]
[387779439,1758847840536,-267.0,0.00023171,2]
[387779445,1758847840589,-233.0,0.00023171,2]
[387779447,1758847840599,-500.0,0.00023171,2]
[387779449,1758847840609,-500.0,0.00023171,2]
[387779451,1758847840619,-500.0,0.00023171,2]
[387779453,1758847840628,-500.0,0.00023171,2]
[387779455,1758847840638,-292.98719227,0.00023171,2]
[387779457,1758847840647,-252.76,0.00028219,14]
[387779458,1758847840657,-252.76,0.00028904,15]
[387779460,1758847840668,-1000.0,0.000293,20]
[387779461,1758847840677,-1000.0,0.000293,30]
[387779462,1758847840686,-7383.19569212,0.0002944,2]
[387779463,1758847840697,-1891.18969746,0.0002944,2]
[387779658,1758847846684,-1384.19626404,0.000199,2]
[387779659,1758847846693,-484.18872474,0.00020972,2]
[387779660,1758847846738,-900.00753906,0.00020972,2]
[387779661,1758847846747,-741.98612283,0.00022044,2]
[387779666,1758848085603,161.0,0.00021,6]
[387779667,1758848086284,161.0,0.00021,6]
[387779668,1758848096641,161.0,0.00021,8]
[387779669,1758848097408,161.0,0.00021,8]
[387779670,1758848121159,161.0,0.00024,8]
[387779671,1758848141570,161.0,0.00024,8]
[387779672,1758848179403,160.81458046,0.000287,120]
[387779674,1758848899870,150.0,0.00028767,120]
[387779714,1758849037896,-407.95334771,0.000199,2]
[387779716,1758849037906,-1259.69439365,0.000199,2]
[387779717,1758849037915,-1259.69439354,0.00020972,2]
[387779719,1758849037924,-150.18307025,0.00022044,2]
[387779721,1758849037935,-658.2987274,0.00022044,2]
[387779740,1758849038174,-451.21259589,0.00022044,2]
[387779742,1758849038183,-11.00240411,0.00022095,2]
[387779747,1758849038229,-222.6636164,0.00022095,2]
[387779749,1758849038239,-160.0,0.00023062,2]
[387779751,1758849038250,-1259.69439354,0.00023116,2]
[387779752,1758849038259,-417.15472785,0.00023118,2]
[387779753,1758849038268,-160.0,0.00023118,2]
[387779754,1758849038278,-160.0,0.00023118,2]
[387779755,1758849038287,-300.0,0.00023161,2]
[387779756,1758849038296,-188.0,0.00023161,2]
[387779757,1758849038305,-11769.04187515,0.00023162,2]
[387779758,1758849038314,-1200.0,0.00023163,2]
[387779759,1758849038322,-978.0,0.00023172,2]
[387779760,1758849038331,-643.69434133,0.00024185,2]
[387779762,1758849038434,-500.0,0.00024185,2]
[387779763,1758849038444,-500.0,0.00024185,2]
[387779764,1758849038453,-205.17286272,0.00024185,2]
[387779765,1758849038461,-1259.69439354,0.00024187,2]
[387779766,1758849038470,-1259.69439354,0.00025259,3]
[387779767,1758849038479,-1259.69439354,0.00026331,5]
[387779768,1758849038488,-292.696,0.00026849,14]
[387779769,1758849038497,-1259.69439354,0.00027403,7]
[387779770,1758849038506,-160.0,0.00027654,3]
[387779771,1758849038515,-160.0,0.00028183,4]
[387779772,1758849038524,-231.7,0.00028219,14]
[387779773,1758849038534,-1259.69439354,0.00028475,9]
[387779774,1758849038543,-160.0,0.00028713,5]
[387779775,1758849038552,-231.7,0.00028904,15]
[387779776,1758849038561,-1000.0,0.00029053,5]
[387779777,1758849038571,-160.0,0.00029242,6]
[387779778,1758849038580,-208.77493811,0.00029242,5]
[387779779,1758849038589,-1000.0,0.000293,50]
[387779780,1758849038598,-161.0,0.000293,30]
[387779781,1758849038607,-161.0,0.000293,30]
[387779782,1758849038616,-160.0,0.000293,30]
[387779783,1758849038625,-151.84916337,0.0002937,2]
[387779784,1758849038635,-550.0,0.0002942,3]
[387779785,1758849038644,-9584.2391004,0.0002942,2]
[387779786,1758849038653,-500.0,0.00029429,2]
[387779787,1758849038662,-305.09103459,0.00029429,2]
[387779788,1758849038671,-500.0,0.00029429,2]
[387779789,1758849038679,-500.0,0.00029429,2]
[387779790,1758849038688,-500.0,0.00029429,2]
[387779791,1758849038697,-14376.3586506,0.0002943,2]
[387779792,1758849038706,-2743.33,0.0002943,10]
[387779793,1758849038715,-2286.11,0.0002943,10]
[387779794,1758849038725,-741.65417206,0.0002944,2]
[387779795,1758849038735,-60437.14711682,0.0002944,2]
[387779796,1758849038748,-323.90922748,0.0002944,2]
[387779797,1758849038763,-926.0,0.0002944,2]
[387779875,1758849043135,-468.942,0.0002944,2]
[387779877,1758849043147,-1028.7,0.0002944,2]
[387780031,1758849045817,-657.32693142,0.0002944,2]
[387780032,1758849045873,-1925.42455609,0.0002944,2]
[387780033,1758849045982,-13290.59739764,0.0002944,2]
[387780039,1758850123151,4237.36331756,0.0001908,2]
[387780040,1758850123680,9730.92926429,0.0001908,2]
[387780041,1758850206526,175.2351836,0.0001908,2]
[387780042,1758850208337,155.37265907,0.00030093,60]
[387780059,1758850232097,-7714.6,0.00019352,2]
[387780060,1758850232106,-446.0,0.00019898,2]
[387780061,1758850232115,-1293.33136165,0.000199,2]
[387780062,1758850232125,-1293.33136143,0.00020972,2]
[387780063,1758850232134,-1293.33136143,0.00022044,2]
[387780064,1758850232143,-233.66602051,0.00022113,2]
[387780065,1758850232153,-417.15472785,0.00022113,2]
[387780066,1758850232162,-430.75944684,0.00023116,2]
[387780067,1758850232173,-862.57191459,0.00023116,2]
[387780068,1758850232182,-1293.33136143,0.00024187,2]
[387780069,1758850232191,-49282.88103953,0.00024195,2]
[387780071,1758850232200,-467.78343142,0.00024195,2]
[387780073,1758850232209,-333.06851119,0.00024195,2]
[387780075,1758850232219,-270.57874632,0.00024195,2]
[387780077,1758850232228,-184.54833623,0.00024195,2]
[387780079,1758850232237,-410.0,0.00024197,2]
[387780081,1758850232247,-500.0,0.00024646,2]
[387780082,1758850232256,-234.157,0.00025258,9]
[387780083,1758850232266,-1293.33136143,0.00025259,3]
[387780084,1758850232275,-1293.33136143,0.00026331,5]
[387780085,1758850232284,-410.0,0.00027197,2]
[387780086,1758850232293,-1293.33136143,0.00027403,7]
[387780087,1758850232303,-212.39,0.00028219,14]
[387780088,1758850232312,-1293.33136143,0.00028475,9]
[387780089,1758850232321,-3032.0128601,0.00028525,2]
[387780090,1758850232331,-212.39,0.00028904,15]
[387780091,1758850232340,-170.8303088,0.0002933,2]
[387780092,1758850232349,-160.0,0.0002937,5]
[387780093,1758850232358,-295.68793527,0.00029422,2]
[387780094,1758850232367,-202.0,0.0002943,24]
[387780095,1758850232376,-1913.19,0.0002943,10]
[387780096,1758850232386,-914.04873231,0.0002943,10]
[387780097,1758850232397,-680.28126769,0.0002943,10]
[387780098,1758850232407,-468.85183641,0.0002944,2]
[387780138,1758850237910,-500.0,0.00024194,2]
[387780139,1758850237919,-175.12150934,0.00024194,2]
[387780141,1758850237929,-500.0,0.00024194,2]
[387780143,1758850237938,-217.83692161,0.00024194,2]
[387780144,1758850237947,-500.0,0.00024194,2]
[387780145,1758850237956,-500.0,0.00024194,2]
[387780146,1758850237966,-500.0,0.00024194,2]
[387780147,1758850237975,-314.58710669,0.0002944,2]
[387780148,1758850238001,-310.85737393,0.0002944,2]
[387780149,1758850238010,-45633.14262607,0.0002944,2]
[387780159,1758850239952,-1433.49650785,0.0002944,2]
[387780160,1758850240056,-466.49612293,0.0002944,2]
[387780161,1758850240067,-1500.0,0.0002944,2]
[387780166,1758850243319,-810.03867287,0.0002943,10]
[387780167,1758850243455,-518.57132713,0.0002943,10]
[387780168,1758850243465,-96059.09319483,0.0002944,2]
[387780191,1758850246057,-12579.4972687,0.0002944,2]
[387780192,1758850246154,-8333.62863698,0.0002944,2]